bitfinex-derivatives/quotes_BTCF0:USTF0_20250924
["timestamp","ask_amount","ask_price","bid_price","bid_amount"]
[1758701549904,0.42571,112510.0,112500.0,0.38236821]
[1758701550606,0.42571,112510.0,112500.0,0.13204656]
[1758701550806,0.43071,112510.0,112500.0,0.13204656]
[1758701551207,0.5195524,112510.0,112500.0,0.13204656]
[1758701551507,0.07291,112510.0,112500.0,0.38236821]
[1758701551806,0.05991,112510.0,112500.0,0.74316821]
[1758701552000,0.05991,112510.0,112500.0,0.75117821]
[1758701552200,0.03733,112510.0,112500.0,0.75117821]
[1758701552403,0.03733,112510.0,112500.0,1.15117821]
[1758701552708,0.03733,112510.0,112500.0,1.46380922]
[1758701552907,0.03533,112510.0,112500.0,1.46380922]
[1758701554001,0.03533,112510.0,112500.0,1.18233289]
[1758701554210,0.03533,112510.0,112500.0,1.25485838]
[1758701554416,0.03033,112510.0,112500.0,1.25485838]
[1758701554596,0.03033,112510.0,112500.0,1.53733471]
[1758701555007,0.02933,112510.0,112500.0,1.53733471]
[1758701555205,0.03033,112510.0,112500.0,1.53733471]
[1758701555510,0.03033,112510.0,112500.0,1.25585838]
[1758701556312,0.03033,112510.0,112500.0,1.53733471]
[1758701559507,0.03033,112510.0,112500.0,1.13733471]
[1758701560806,0.04366,112510.0,112500.0,1.13733471]
[1758701564012,0.03033,112510.0,112500.0,1.13733471]
[1758701565213,0.03033,112510.0,112500.0,1.62621964]
[1758701565714,0.03033,112510.0,112500.0,1.72321289]
[1758701582926,0.03033,112510.0,112500.0,1.88250123]
[1758701587928,0.03033,112510.0,112500.0,2.24330123]
[1758701590131,0.03033,112510.0,112500.0,2.08401289]
[1758701591934,0.03033,112510.0,112500.0,1.84392608]
[1758701592631,0.03033,112510.0,112500.0,1.68401289]
[1758701593431,0.03033,112510.0,112500.0,1.84392608]
[1758701595032,0.03033,112510.0,112500.0,1.68401289]
[1758701599734,0.03033,112510.0,112500.0,1.8917954]
[1758701600535,0.03033,112510.0,112500.0,1.1701954]
[1758701600739,0.03033,112510.0,112500.0,1.8917954]
[1758701602337,0.03033,112510.0,112500.0,1.68401289]
[1758701603035,0.03033,112510.0,112500.0,1.89165902]
[1758701606145,0.03033,112510.0,112500.0,1.17005902]
[1758701606330,0.03033,112510.0,112500.0,1.89165902]
[1758701606525,0.03033,112510.0,112500.0,1.32870636]
[1758701606735,0.03033,112510.0,112500.0,1.89165902]
[1758701607940,0.03033,112510.0,112500.0,1.68401289]
[1758701612545,0.03033,112510.0,112500.0,1.37121226]
[1758701620040,0.03033,112510.0,112500.0,1.53092646]
[1758701620948,0.03033,112510.0,112500.0,1.37121226]
[1758701621749,0.03033,112510.0,112500.0,1.57884072]
[1758701624051,0.03033,112510.0,112500.0,1.37121226]
[1758701626554,0.03033,112510.0,112500.0,1.57884072]
[1758701633969,0.03033,112510.0,112500.0,1.37121226]
[1758701636471,0.001,112510.0,112500.0,1.37121226]
[1758701642678,0.001,112510.0,112500.0,1.57914129]
[1758701643883,0.001,112510.0,112500.0,1.37121226]
[1758701652786,0.001,112510.0,112500.0,1.53112311]
[1758701655292,0.001,112510.0,112500.0,1.37121226]
[1758701657984,0.41416,112510.0,112500.0,1.26620901]
[1758701658194,0.43746,112510.0,112500.0,1.71016901]
[1758701660092,0.43746,112510.0,112500.0,2.07096901]
[1758701660999,0.43746,112510.0,112500.0,2.27889804]
[1758701664594,0.43746,112510.0,112500.0,2.07096901]
[1758701667701,0.43746,112510.0,112500.0,1.82081698]
[1758701667900,0.43746,112510.0,112500.0,2.07096901]
[1758701668195,0.43746,112510.0,112500.0,2.07897901]
[1758701668401,0.401,112510.0,112500.0,2.07897901]
[1758701668592,0.001,112510.0,112500.0,2.17232869]
[1758701670301,0.001,112510.0,112500.0,2.17251152]
[1758701670603,0.001,112510.0,112500.0,2.38044055]
[1758701671808,0.06585,112520.0,112510.0,0.1101924]
[1758701672006,0.06565,112520.0,112510.0,1.05887781]
[1758701672399,0.06565,112520.0,112510.0,1.14776274]
[1758701672597,0.06565,112520.0,112510.0,1.65037889]
[1758701672598,0.02919,112520.0,112510.0,1.65037889]
[1758701674604,0.02919,112520.0,112510.0,1.71280023]
[1758701674798,0.03019,112520.0,112510.0,1.71280023]
[1758701675000,0.0002,112530.0,112520.0,0.0888345]
[1758701675201,0.0002,112540.0,112530.0,0.1182866]
[1758701675505,0.49511837,112550.0,112540.0,0.1101687]
[1758701675802,0.49491837,112550.0,112540.0,0.3915314]
[1758701678106,0.49891837,112550.0,112540.0,0.3915314]
[1758701678896,0.51991837,112550.0,112540.0,0.3915314]
[1758701680110,0.15911837,112550.0,112540.0,0.3915314]
[1758701681308,0.15911837,112550.0,112540.0,0.1101687]
[1758701681616,0.15911837,112550.0,112540.0,0.3915314]
[1758701695324,0.1502715,112550.0,112540.0,0.3915314]
[1758701695715,0.1502715,112550.0,112540.0,0.7523314]
[1758701696020,0.1502715,112550.0,112540.0,0.91223609]
[1758701696820,0.1502715,112550.0,112540.0,0.7523314]
[1758701701740,0.025,112550.0,112540.0,2.4325488]
[1758701702240,0.004,112550.0,112540.0,2.4325488]
[1758701702428,0.014,112550.0,112540.0,2.4325488]
[1758701703033,0.004,112550.0,112540.0,2.4325488]
[1758701703338,0.004,112550.0,112540.0,2.4455488]
[1758701703734,0.004,112550.0,112540.0,2.4325488]
[1758701703934,0.00031,112560.0,112550.0,0.1179808]
[1758701704128,0.00011,112560.0,112550.0,1.0415062]
[1758701704336,0.00011,112560.0,112550.0,1.14002221]
[1758701704535,0.00011,112560.0,112550.0,1.22887555]
[1758701705233,0.00011,112560.0,112550.0,1.30126239]
[1758701706436,0.00411,112560.0,112550.0,0.73853699]
[1758701706640,0.02693,112560.0,112550.0,0.73853699]
[1758701706939,0.00411,112560.0,112550.0,1.30126239]
[1758701707543,0.00511,112560.0,112550.0,1.30126239]
[1758701713141,0.00511,112560.0,112550.0,1.46116708]
[1758701713439,0.00111,112560.0,112550.0,1.46216708]
[1758701713837,0.00011,112560.0,112550.0,1.46216708]
[1758701714140,0.00011,112560.0,112550.0,1.46316708]
[1758701714836,0.00011,112560.0,112550.0,1.30326239]
[1758701717133,0.00011,112560.0,112550.0,1.46316708]
[1758701725143,0.4363,112560.0,112550.0,0.55476285]
[1758701725344,1.4486282,112560.0,112550.0,0.002]
[1758701725544,1.1672655,112560.0,112550.0,0.002]
[1758701725744,1.1672655,112560.0,112550.0,0.2833627]
[1758701726344,1.1672655,112560.0,112550.0,0.002]
[1758701726541,2.32538738,112560.0,112550.0,0.002]
[1758701726840,0.1251186,112540.0,112530.0,0.0001]
[1758701727042,0.1251265,112530.0,112520.0,0.18048851]
[1758701727247,1.1672892,112530.0,112520.0,0.18048851]
[1758701727646,1.1672892,112530.0,112520.0,0.02058382]
[1758701728244,1.1673992,112530.0,112520.0,0.02058382]
[1758701728838,1.1833992,112530.0,112520.0,0.02058382]
[1758701730044,1.1833992,112530.0,112520.0,0.30194652]
[1758701731049,1.1873992,112530.0,112520.0,0.30194652]
[1758701731746,1.19609037,112530.0,112520.0,0.30194652]
[1758701731952,1.19609037,112530.0,112520.0,0.02058382]
[1758701732153,0.1251344,112520.0,112510.0,0.2813627]
[1758701734155,0.1251344,112520.0,112510.0,0.3042427]
[1758701734547,0.0363,112520.0,112500.0,1.28187929]
[1758701734753,0.1028123,112510.0,112500.0,1.19302909]
[1758701735759,0.1028123,112510.0,112500.0,1.44326295]
[1758701735960,0.1078123,112510.0,112500.0,1.44326295]
[1758701736155,0.1078123,112510.0,112500.0,1.53211315]
[1758701736556,0.1088123,112510.0,112500.0,1.53211315]
[1758701741364,0.1088123,112510.0,112500.0,1.44326295]
[1758701741661,0.1088123,112510.0,112500.0,0.63174295]
[1758701741858,0.1311423,112510.0,112500.0,0.65462295]
[1758701743264,0.1311423,112510.0,112500.0,0.74347315]
[1758701744565,0.1311423,112510.0,112500.0,0.65462295]
[1758701745262,0.1311423,112510.0,112500.0,0.29382295]
[1758701746766,0.1311423,112510.0,112500.0,0.02070909]
[1758701746767,0.8919423,112510.0,112500.0,0.02070909]
[1758701754575,0.9639213,112510.0,112500.0,0.02070909]
[1758701756775,2.0139213,112510.0,112500.0,0.02070909]
[1758701758380,1.9419423,112510.0,112500.0,0.02070909]
[1758701759178,1.9419423,112510.0,112500.0,0.27094295]
[1758701759578,1.5811423,112510.0,112500.0,0.02070909]
[1758701761469,1.9419423,112510.0,112500.0,0.02070909]
[1758701762072,2.19217616,112510.0,112500.0,0.02070909]
[1758701763777,0.124798,112490.0,112480.0,0.0001]
[1758701763970,0.1248059,112480.0,112470.0,0.29265481]
[1758701764785,0.13360117,112480.0,112470.0,0.29265481]
[1758701764986,0.13160117,112480.0,112470.0,0.29265481]
[1758701765187,0.13160117,112480.0,112470.0,0.27083481]
[1758701765379,0.1228059,112480.0,112470.0,0.27083481]
[1758701765885,0.1228059,112480.0,112470.0,0.29565481]
[1758701766486,0.1228059,112480.0,112470.0,0.65645481]
[1758701766682,0.03594,112480.0,112470.0,0.74532861]
[1758701766888,0.84674,112480.0,112470.0,1.14532861]
[1758701767083,0.03594,112480.0,112470.0,1.14532861]
[1758701767591,0.03594,112480.0,112470.0,1.15732861]
[1758701768385,0.03594,112480.0,112470.0,1.22843022]
[1758701768694,0.1248059,112480.0,112470.0,1.22843022]
[1758701768893,0.1248059,112480.0,112470.0,1.06845481]
[1758701769195,0.1248059,112480.0,112470.0,0.66845481]
[1758701773105,0.1248059,112480.0,112470.0,0.41822095]
[1758701773296,0.1248059,112480.0,112470.0,0.66845481]
[1758701775401,0.1248059,112480.0,112470.0,0.75732861]
[1758701776810,0.03594,112480.0,112470.0,0.75732861]
[1758701777600,0.1248059,112480.0,112470.0,0.75732861]
[1758701779712,0.03594,112480.0,112470.0,0.75732861]
[1758701780006,0.03604,112480.0,112470.0,0.75732861]
[1758701780608,0.1249059,112480.0,112470.0,0.75732861]
[1758701782603,0.03604,112480.0,112470.0,0.75732861]
[1758701782806,0.02236,112480.0,112470.0,1.16743861]
[1758701783202,0.0001,112480.0,112470.0,1.16743861]
[1758701783907,0.01341,112480.0,112470.0,1.15732861]
[1758701784309,0.01341,112480.0,112470.0,1.3172333]
[1758701785506,0.0001,112480.0,112470.0,1.3172333]
[1758701785810,0.0001,112480.0,112470.0,1.40614194]
[1758701786496,0.1238559,112480.0,112470.0,0.57812564]
[1758701786703,0.1238559,112480.0,112470.0,0.8283595]
[1758701791808,0.1238559,112480.0,112470.0,0.8143595]
[1758701792010,0.1238559,112480.0,112470.0,0.9032333]
[1758701792719,0.1238559,112480.0,112470.0,0.8143595]
[1758701794218,0.1238559,112480.0,112470.0,0.9032333]
[1758701794818,0.1238559,112480.0,112470.0,0.74332861]
[1758701796618,0.1238559,112480.0,112470.0,1.05646981]
[1758701796813,0.1238559,112480.0,112470.0,0.68590848]
[1758701797118,0.1238559,112480.0,112470.0,0.48506051]
[1758701797318,0.40554343,112480.0,112470.0,0.48506051]
[1758701797822,1.57590343,112480.0,112470.0,0.10321123]
[1758701798617,0.1021917,112460.0,112450.0,0.30361753]
[1758701798807,1.57589923,112460.0,112450.0,0.30351753]
[1758701800421,1.57589923,112460.0,112450.0,0.32396361]
[1758701801617,1.21609923,112460.0,112450.0,0.32396361]
[1758701803821,1.61609923,112460.0,112450.0,0.0001]
[1758701804022,1.3344117,112460.0,112450.0,0.0001]
[1758701804225,1.61609923,112460.0,112450.0,0.0001]
[1758701804416,1.61609923,112460.0,112450.0,0.28178753]
[1758701808926,1.61609923,112460.0,112450.0,0.30351753]
[1758701809126,1.61609923,112460.0,112450.0,0.0001]
[1758701809325,1.97689923,112460.0,112450.0,0.28178753]
[1758701815530,1.97689923,112460.0,112450.0,0.0001]
[1758701818522,1.61609923,112460.0,112450.0,0.0001]
[1758701818832,2.33769923,112460.0,112450.0,0.0001]
[1758701822338,1.52805923,112460.0,112450.0,0.0001]
[1758701822536,2.34297923,112460.0,112450.0,0.0001]
[1758701828133,2.0612917,112460.0,112450.0,0.0001]
[1758701828345,2.34297923,112460.0,112450.0,0.0001]
[1758701832641,1.52805923,112460.0,112450.0,0.0001]
[1758701832940,2.34261923,112460.0,112450.0,0.0001]
[1758701833141,1.12805923,112460.0,112450.0,0.30484753]
[1758701833439,1.94221923,112460.0,112450.0,0.02316]
[1758701833639,1.94221923,112460.0,112450.0,0.0001]
[1758701834644,1.6605317,112460.0,112450.0,0.0001]
[1758701834948,1.94221923,112460.0,112450.0,0.0001]
[1758701835540,1.6605317,112460.0,112450.0,0.02316]
[1758701835837,1.12805923,112460.0,112450.0,0.39373723]
[1758701836042,1.94229923,112460.0,112450.0,0.39373723]
[1758701836838,1.94229923,112460.0,112450.0,0.30484753]
[1758701837640,1.94229923,112460.0,112450.0,0.02316]
[1758701837835,1.94229923,112460.0,112450.0,0.0001]
[1758701845543,1.12805923,112460.0,112450.0,0.0001]
[1758701845846,1.94197923,112460.0,112450.0,0.02324]
[1758701846034,1.94197923,112460.0,112450.0,0.30492753]
[1758701848149,1.6602917,112460.0,112450.0,0.02324]
[1758701848339,1.94197923,112460.0,112450.0,0.02324]
[1758701848541,1.94197923,112460.0,112450.0,0.0001]
[1758701848744,1.94197923,112460.0,112450.0,0.02324]
[1758701850846,1.94197923,112460.0,112450.0,0.0001]
[1758701851949,1.94197923,112460.0,112450.0,0.02324]
[1758701852250,1.6602917,112460.0,112450.0,0.02324]
[1758701852550,1.94197923,112460.0,112450.0,0.02324]
[1758701853252,1.94197923,112460.0,112450.0,0.0001]
[1758701854751,1.12805923,112460.0,112450.0,0.0001]
[1758701854956,1.94157923,112460.0,112450.0,0.0001]
[1758701856054,1.94157923,112460.0,112450.0,0.02324]
[1758701856246,1.94157923,112460.0,112450.0,0.0001]
[1758701857051,1.91044303,112460.0,112450.0,0.0001]
[1758701857250,1.91044303,112460.0,112450.0,0.02324]
[1758701858156,1.91044303,112460.0,112450.0,0.0001]
[1758701867250,1.6598917,112460.0,112450.0,0.0001]
[1758701867445,1.91044303,112460.0,112450.0,0.0001]
[1758701869262,0.8463717,112460.0,112450.0,0.76268113]
[1758701869968,0.001,112460.0,112450.0,0.77069113]
[1758701870155,0.001,112460.0,112450.0,1.13149113]
[1758701870461,0.001,112460.0,112450.0,1.2911031]
[1758701870853,0.001,112460.0,112450.0,1.38002755]
[1758701872959,0.001,112460.0,112450.0,2.19290755]
[1758701882471,0.001,112460.0,112450.0,2.03329558]
[1758701883570,0.001,112460.0,112450.0,1.78274425]
[1758701883766,0.001,112460.0,112450.0,2.03329558]
[1758701885570,0.0002,112470.0,112460.0,0.1202118]
[1758701885774,0.0002,112480.0,112470.0,0.1100939]
[1758701885976,0.03509,112490.0,112480.0,0.110086]
[1758701886177,0.03489,112490.0,112480.0,0.36063733]
[1758701886673,0.1237481,112490.0,112480.0,0.36063733]
[1758701887579,0.1237481,112490.0,112480.0,0.110086]
[1758701887777,0.1287481,112490.0,112480.0,0.110086]
[1758701888377,0.1307481,112490.0,112480.0,0.110086]
[1758701890180,0.1307481,112490.0,112480.0,0.36063733]
[1758701891876,0.04189,112490.0,112480.0,0.36063733]
[1758701892778,0.02821,112490.0,112480.0,0.72944733]
[1758701892980,0.007,112490.0,112480.0,0.72944733]
[1758701893177,0.02821,112490.0,112480.0,0.72944733]
[1758701893672,0.007,112490.0,112480.0,0.72944733]
[1758701894273,0.02821,112490.0,112480.0,0.72944733]
[1758701894678,0.04204,112490.0,112480.0,0.72944733]
[1758701894991,0.007,112490.0,112480.0,1.56506753]
[1758701896883,0.002,112490.0,112480.0,1.56506753]
[1758701897081,0.002,112490.0,112480.0,1.56606753]
[1758701897678,0.0002,112500.0,112480.0,1.56606753]
[1758701897887,0.0002,112500.0,112490.0,1.54418943]
[1758701898176,0.02129,112510.0,112500.0,0.1103001]
[1758701898384,0.02109,112510.0,112500.0,0.72165143]
[1758701899777,0.03408,112510.0,112500.0,0.72165143]
[1758701900983,0.03109,112510.0,112500.0,0.73176143]
[1758701901176,0.03409,112510.0,112500.0,0.73176143]
[1758701902781,0.04708,112510.0,112500.0,0.72165143]
[1758701903089,0.1359223,112510.0,112500.0,0.72165143]
[1758701903288,0.04708,112510.0,112500.0,0.72165143]
[1758701903585,0.03708,112510.0,112500.0,0.72265143]
[1758701903780,0.03408,112510.0,112500.0,0.72265143]
[1758701908583,0.1229223,112510.0,112500.0,0.36185143]
[1758701908783,0.1229223,112510.0,112500.0,1.2857801]
[1758701909788,0.1229223,112510.0,112500.0,1.53633143]
[1758701913694,0.1229223,112510.0,112500.0,0.72265143]
[1758701913900,1.13427363,112510.0,112500.0,0.1113001]
[1758701914192,1.13427363,112510.0,112500.0,0.02245]
[1758701914493,1.13427363,112510.0,112500.0,0.001]
[1758701915889,0.1229303,112500.0,112490.0,0.94416388]
[1758701916192,0.4837303,112500.0,112490.0,0.94416388]
[1758701917893,0.4857303,112500.0,112490.0,0.94416388]
[1758701918589,0.4857303,112500.0,112490.0,0.4123894]
[1758701918794,0.4857303,112500.0,112490.0,1.2255894]
[1758701919288,0.4857303,112500.0,112490.0,1.2254694]
[1758701920294,0.4897303,112500.0,112490.0,1.2254694]
[1758701920481,0.4897303,112500.0,112490.0,1.2253894]
[1758701920885,0.77135582,112500.0,112490.0,1.2253894]
[1758701922590,0.4897303,112500.0,112490.0,1.2253894]
[1758701926991,0.04008,112500.0,112490.0,1.2253894]
[1758701927297,0.006,112500.0,112490.0,2.35670775]
[1758701931601,0.006,112500.0,112490.0,2.07508223]
[1758701938604,0.006,112500.0,112490.0,1.26208223]
[1758701938802,0.006,112500.0,112490.0,2.07384223]
[1758701938998,0.01957,112500.0,112490.0,2.07384223]
[1758701940019,0.006,112500.0,112490.0,2.07384223]
[1758701942322,0.006,112500.0,112490.0,2.35546775]
[1758701944128,0.002,112500.0,112490.0,2.35546775]
[1758701944324,0.002,112500.0,112490.0,2.35846775]
[1758701944927,0.0002,112510.0,112500.0,0.1213806]
[1758701945222,0.39672,112520.0,112510.0,0.1112627]
[1758701945429,0.39652,112520.0,112510.0,1.20424822]
[1758701946826,0.40552,112520.0,112510.0,1.20424822]
[1758701948231,0.40852,112520.0,112510.0,1.20424822]
[1758701949523,0.4973549,112520.0,112510.0,0.02242]
[1758701949729,0.1243328,112510.0,112500.0,0.04341537]
[1758701950033,0.76675832,112510.0,112500.0,0.02099537]
[1758701950831,0.1243409,112500.0,112490.0,0.85383978]
[1758701951032,0.76676642,112500.0,112490.0,0.85383978]
[1758701951434,0.76676642,112500.0,112490.0,0.04287978]
[1758701951636,1.16676642,112500.0,112490.0,0.04287978]
[1758701952026,1.16676642,112500.0,112490.0,0.04587978]
[1758701953632,1.16676642,112500.0,112490.0,0.20549175]
[1758701953823,1.16676642,112500.0,112490.0,0.29435025]
[1758701954529,1.16676642,112500.0,112490.0,0.57597577]
[1758701955138,1.16976642,112500.0,112490.0,0.57297577]
[1758701955329,1.17176642,112500.0,112490.0,0.57297577]
[1758701956538,0.81096642,112500.0,112490.0,0.57297577]
[1758701957030,1.17176642,112500.0,112490.0,0.57297577]
[1758701958240,1.17176642,112500.0,112490.0,0.48411727]
[1758701959742,1.17176642,112500.0,112490.0,0.57297587]
[1758701960038,1.7009809,112500.0,112490.0,0.57297587]
[1758701960240,1.62180642,112500.0,112490.0,0.57297587]
[1758701960443,1.98260642,112500.0,112490.0,0.57297587]
[1758701960739,0.81096642,112500.0,112490.0,0.57297587]
[1758701961445,0.5293409,112500.0,112490.0,0.57297587]
[1758701963042,0.8901409,112500.0,112490.0,0.57297587]
[1758701968848,0.8901409,112500.0,112490.0,0.4133639]
[1758701969447,0.77176642,112500.0,112490.0,0.02045978]
[1758701969647,1.17176642,112500.0,112490.0,0.02045978]
[1758701972753,1.45339194,112500.0,112490.0,0.01945978]
[1758701973051,0.1254987,112490.0,112480.0,0.15961197]
[1758701973247,1.21736422,112490.0,112480.0,0.15961197]
[1758701973450,1.97816422,112490.0,112480.0,0.15961197]
[1758701973754,0.1255066,112480.0,112470.0,0.18043124]
[1758701973954,0.76793212,112480.0,112470.0,0.18043124]
[1758701974150,0.4863066,112480.0,112470.0,0.18043124]
[1758701974451,0.76793212,112480.0,112470.0,0.02081927]
[1758701974951,0.76493212,112480.0,112470.0,0.02081927]
[1758701975554,0.76493212,112480.0,112470.0,0.02881927]
[1758701975853,0.76693212,112480.0,112470.0,0.05138927]
[1758701976053,0.76993212,112480.0,112470.0,0.04338927]
[1758701978663,0.4883066,112480.0,112470.0,0.04338927]
[1758701980056,0.73876792,112480.0,112470.0,0.04338927]
[1758701980458,0.73876792,112480.0,112470.0,0.02081927]
[1758701982863,0.4883066,112480.0,112470.0,0.04338927]
[1758701985860,0.4883066,112480.0,112470.0,0.02081927]
[1758701987668,1.5383066,112480.0,112470.0,0.02081927]
[1758701990674,1.5383066,112480.0,112470.0,0.04300927]
[1758701991069,1.5383066,112480.0,112470.0,0.02081927]
[1758701993169,1.5383066,112480.0,112470.0,0.04300927]
[1758701993374,1.5383066,112480.0,112470.0,0.02081927]
[1758701995472,1.78876792,112480.0,112470.0,0.02081927]
[1758701998378,1.5383066,112480.0,112470.0,0.04300927]
[1758701999976,1.5383066,112480.0,112470.0,0.13188367]
[1758702000879,0.4883066,112480.0,112470.0,0.13188367]
[1758702004773,0.4883066,112480.0,112470.0,0.04300927]
[1758702005684,0.4883066,112480.0,112470.0,0.13188367]
[1758702007779,0.4883066,112480.0,112470.0,0.13173973]
[1758702009291,0.4883066,112480.0,112470.0,0.04286533]
[1758702010388,0.4883066,112480.0,112470.0,0.02067533]
[1758702010589,0.73876792,112480.0,112470.0,0.02067533]
[1758702012093,0.73876792,112480.0,112470.0,0.04286533]
[1758702012393,0.73876792,112480.0,112470.0,0.13173983]
[1758702012593,0.4883066,112480.0,112470.0,0.13173983]
[1758702013188,1.2974666,112480.0,112470.0,0.13173983]
[1758702019804,1.2974666,112480.0,112470.0,0.04286533]
[1758702025611,1.2974666,112480.0,112470.0,0.02067533]
[1758702025905,1.54792792,112480.0,112470.0,0.02067533]
[1758702033910,1.2974666,112480.0,112470.0,0.02067533]
[1758702034214,1.54792792,112480.0,112470.0,0.02067533]
[1758702035910,1.94792792,112480.0,112470.0,0.02067533]
[1758702038599,1.97927557,112480.0,112470.0,0.02067533]
[1758702039500,1.57927557,112480.0,112470.0,0.02067533]
[1758702044818,1.2974666,112480.0,112470.0,0.02067533]
[1758702045118,1.57927557,112480.0,112470.0,0.02067533]
[1758702054532,1.2974666,112480.0,112470.0,0.02067533]
[1758702054732,1.57927557,112480.0,112470.0,0.02067533]
[1758702060241,1.2974666,112480.0,112470.0,0.02067533]
[1758702060438,1.57927557,112480.0,112470.0,0.02067533]
[1758702066944,0.125122,112460.0,112450.0,0.15981197]
[1758702067148,1.57665097,112460.0,112450.0,0.15971197]
[1758702068240,1.57665097,112460.0,112450.0,0.16171197]
[1758702068437,1.57665097,112460.0,112450.0,0.0021]
[1758702068941,1.57765097,112460.0,112450.0,0.0001]
[1758702069246,1.57865097,112460.0,112450.0,0.0001]
[1758702070537,1.58741486,112460.0,112450.0,0.0001]
[1758702075957,1.30560589,112460.0,112450.0,0.0001]
[1758702076254,1.58741486,112460.0,112450.0,0.0001]
[1758702083955,1.30560589,112460.0,112450.0,0.08899]
[1758702084159,1.58641486,112460.0,112450.0,0.08899]
[1758702084456,1.59841486,112460.0,112450.0,0.08899]
[1758702085151,1.59841486,112460.0,112450.0,0.0001]
[1758702085758,1.58641486,112460.0,112450.0,0.0001]
[1758702085958,1.59841486,112460.0,112450.0,0.0001]
[1758702086252,0.79249486,112460.0,112450.0,0.1100402]
[1758702086458,1.60133486,112460.0,112450.0,0.39184917]
[1758702087260,1.60133486,112460.0,112450.0,0.1100401]
[1758702088661,1.50368897,112460.0,112450.0,0.1100401]
[1758702088966,0.69484897,112460.0,112450.0,0.39184907]
[1758702089162,1.50364897,112460.0,112450.0,0.39184907]
[1758702089460,1.50364897,112460.0,112450.0,0.79184907]
[1758702091558,1.59253107,112460.0,112450.0,0.79184907]
[1758702092565,1.59253107,112460.0,112450.0,0.4001]
[1758702092861,1.59253107,112460.0,112450.0,0.0001]
[1758702093060,1.95333107,112460.0,112450.0,0.0001]
[1758702100666,1.92213999,112460.0,112450.0,0.0001]
[1758702102569,1.92209999,112460.0,112450.0,0.0001]
[1758702103961,1.92209999,112460.0,112450.0,0.02115]
[1758702106577,1.92209999,112460.0,112450.0,0.51004]
[1758702106578,0.8627221,112460.0,112450.0,0.51004]
[1758702106776,1.6715221,112460.0,112450.0,0.51004]
[1758702107372,1.6714821,112460.0,112450.0,0.51004]
[1758702113378,0.8627221,112460.0,112450.0,0.51004]
[1758702113586,1.6714421,112460.0,112450.0,0.51004]
[1758702126096,1.6714421,112460.0,112450.0,0.42115]
[1758702126496,1.92205999,112460.0,112450.0,0.42115]
[1758702127597,1.6714421,112460.0,112450.0,0.42115]
[1758702128296,1.6714421,112460.0,112450.0,0.5100402]
[1758702129804,1.92205999,112460.0,112450.0,0.5100402]
[1758702130098,1.6714421,112460.0,112450.0,0.5100402]
[1758702130299,1.92205999,112460.0,112450.0,0.5100402]
[1758702130801,1.92205999,112460.0,112450.0,0.42115]
[1758702131793,2.32205999,112460.0,112450.0,0.0001]
[1758702132307,2.32205999,112460.0,112440.0,0.02100877]
[1758702132308,0.1249782,112440.0,112430.0,0.18281197]
[1758702132501,1.18415609,112440.0,112430.0,0.18271197]
[1758702132900,0.9335382,112440.0,112430.0,0.18271197]
[1758702133096,1.18415609,112440.0,112430.0,0.18271197]
[1758702133299,1.18415609,112440.0,112430.0,0.0231]
[1758702133998,1.18515609,112440.0,112430.0,0.0231]
[1758702135603,0.9345382,112440.0,112430.0,0.0231]
[1758702136399,0.1239061,112430.0,112420.0,0.72512355]
[1758702137204,0.1239061,112430.0,112420.0,0.56551158]
[1758702137601,0.1239061,112430.0,112420.0,0.57251158]
[1758702140505,0.1239061,112430.0,112420.0,0.73212355]
[1758702142201,0.1239061,112430.0,112420.0,0.57251158]
[1758702145198,0.1239061,112430.0,112420.0,0.82312947]
[1758702145811,0.1239061,112430.0,112420.0,0.98301833]
[1758702154718,0.1239061,112430.0,112420.0,0.82312947]
[1758702154918,0.035,112430.0,112420.0,0.82322947]
[1758702156818,0.3958,112440.0,112430.0,0.1109162]
[1758702157117,0.4845983,112440.0,112430.0,0.2709506]
[1758702158010,0.4855983,112440.0,112430.0,0.2709506]
[1758702158210,0.1247983,112440.0,112430.0,0.2709506]
[1758702158615,0.0359,112440.0,112430.0,0.2709506]
[1758702159523,0.0359,112440.0,112430.0,0.6317506]
[1758702159718,0.0359,112440.0,112430.0,0.2709506]
[1758702160022,0.1247983,112440.0,112430.0,0.2709506]
[1758702160518,0.1247983,112440.0,112430.0,0.52156849]
[1758702160715,0.0359,112440.0,112430.0,0.88236849]
[1758702161221,0.001,112440.0,112430.0,2.09881849]
[1758702161828,0.001,112440.0,112430.0,1.69881849]
[1758702162628,0.001,112440.0,112430.0,1.73006256]
[1758702162825,0.01369,112440.0,112430.0,0.91361256]
[1758702163024,0.1237283,112440.0,112430.0,1.36125256]
[1758702163426,0.40559026,112440.0,112430.0,1.20131816]
[1758702163827,0.40559026,112440.0,112430.0,1.56211816]
[1758702164026,0.1237283,112440.0,112430.0,1.56211816]
[1758702164830,0.03483,112440.0,112430.0,1.56211816]
[1758702173134,0.03483,112440.0,112430.0,1.72205256]
[1758702176437,0.03483,112440.0,112430.0,1.56211816]
[1758702178943,0.02214,112440.0,112430.0,1.72211444]
[1758702180948,0.03531,112440.0,112430.0,1.72211444]
[1758702183045,0.02214,112440.0,112430.0,1.72211444]
[1758702184049,0.001,112440.0,112430.0,1.72211444]
[1758702184648,0.001,112440.0,112430.0,1.44025248]
[1758702185047,0.01417,112440.0,112430.0,1.72211444]
[1758702185448,0.1030689,112440.0,112430.0,1.72211444]
[1758702188248,0.1030689,112440.0,112430.0,1.44025248]
[1758702188447,0.1030689,112440.0,112430.0,1.72211444]
[1758702189247,0.01417,112440.0,112430.0,1.72211444]
[1758702191150,0.01417,112440.0,112430.0,1.56211816]
[1758702191449,0.01417,112440.0,112430.0,1.72217092]
[1758702191849,0.001,112440.0,112430.0,1.72217092]
[1758702194451,0.001,112440.0,112430.0,1.56211816]
[1758702205159,0.0898994,112440.0,112430.0,1.56211816]
[1758702205360,0.0898994,112440.0,112430.0,1.2802562]
[1758702205361,0.1028394,112440.0,112430.0,1.2802562]
[1758702205560,0.38470136,112440.0,112430.0,1.56211816]
[1758702205762,0.1028394,112440.0,112430.0,1.56211816]
[1758702206361,0.1257394,112440.0,112430.0,1.56179816]
[1758702207261,0.1257394,112440.0,112430.0,1.72185322]
[1758702208061,0.1257394,112440.0,112430.0,1.56179816]
[1758702208463,0.1257394,112440.0,112430.0,1.72185414]
[1758702209361,0.1257394,112440.0,112430.0,1.56179816]
[1758702213563,0.1257394,112440.0,112430.0,0.75367816]
[1758702214160,0.1257394,112440.0,112430.0,1.56175816]
[1758702219269,0.03684,112440.0,112430.0,1.56175816]
[1758702219474,0.001,112440.0,112430.0,1.56175816]
[1758702222577,0.001,112440.0,112430.0,1.72181414]
[1758702224673,0.001,112440.0,112430.0,1.69050401]